[Event "FIDE Women World Blitz 2021"]
[Site "Warsaw"]
[Date "2021.12.29"]
[Round "5.39"]
[White "Ovod, Evgenija"]
[Black "Jakubowska, Anna"]
[Result "1-0"]
[ECO "B10"]
[WhiteElo "2366"]
[BlackElo "2106"]
[Annotator "NA"]
[PlyCount "53"]
[EventDate "2021.12.29"]
[EventType "swiss"]
[EventCountry "POL"]
[Tiebreak "Cut1 Buchholz"]
[SourceTitle "playchess.com"]
[Source "ChessBase"]
[SourceQuality "1"]
[TimeControl "180+2"]

1. e4 {[%emt 0:00:00]} c6 {[%emt 0:00:01]} 2. Nf3 {[%emt 0:00:02]} d5 {[%emt 0:
00:01]} 3. d3 {[%emt 0:00:01]} g6 {[%emt 0:00:02]} 4. Nbd2 {[%emt 0:00:06]} Bg7
{[%emt 0:00:01]} 5. g3 {[%emt 0:00:01]} e5 {[%emt 0:00:02]} 6. Bg2 {[%emt 0:00:
01]} Ne7 {[%emt 0:00:02]} 7. O-O {[%emt 0:00:02]} O-O {[%emt 0:00:04]} 8. Re1 {
[%emt 0:00:01]} Bg4 {[%emt 0:00:14]} 9. h3 {[%emt 0:00:04]} Bxf3 {[%emt 0:00:
03]} 10. Nxf3 {[%emt 0:00:05]} Nd7 {[%emt 0:00:02]} 11. c3 {[%emt 0:00:21]} h6
{[%emt 0:00:17]} 12. a4 {[%emt 0:00:14]} f5 {[%emt 0:00:06]} 13. exf5 {[%emt 0:
00:36]} gxf5 {[%emt 0:00:02]} 14. d4 {[%emt 0:00:02]} e4 {[%emt 0:00:05]} 15.
Nh4 {[%emt 0:00:02]} Qe8 {[%emt 0:00:22]} 16. Bf4 {[%emt 0:00:07]} Kh7 {
[%emt 0:00:11]} 17. Qd2 {[%emt 0:00:13]} Qh5 {[%emt 0:00:06]} 18. Bf1 {[%emt 0:
00:03]} Rg8 {[%emt 0:00:09]} 19. Be2 {[%emt 0:00:04]} Qf7 {[%emt 0:00:01]} 20.
Kh2 {[%emt 0:00:05]} Nf6 {[%emt 0:00:07]} 21. Be5 {[%emt 0:00:08]} Nh5 {
[%emt 0:00:07]} 22. Bxg7 {[%emt 0:00:07]} Rxg7 {[%emt 0:00:01]} 23. Ng2 {
[%emt 0:00:04]} Rag8 {[%emt 0:00:15]} 24. Bxh5 {[%emt 0:00:04]} Qxh5 {[%emt 0:
00:01]} 25. Nf4 {[%emt 0:00:04]} Qf3 {[%emt 0:00:22]} 26. Re3 {[%emt 0:00:04]}
Rxg3 {[%emt 0:00:10]} 27. fxg3 {[%emt 0:00:11]} 1-0

[Event "FIDE Women World Blitz 2021"]
[Site "Warsaw"]
[Date "2021.12.29"]
[Round "6.1"]
[White "Goryachkina, Aleksandra"]
[Black "Gunina, Valentina"]
[Result "1-0"]
[ECO "D13"]
[WhiteElo "2604"]
[BlackElo "2480"]
[Annotator "ChessBase"]
[PlyCount "139"]
[EventDate "2021.12.29"]
[EventType "swiss"]
[EventCountry "POL"]
[Tiebreak "Cut1 Buchholz"]
[SourceTitle "playchess.com"]
[Source "ChessBase"]
[SourceQuality "1"]
[TimeControl "180+2"]

1. d4 {[%emt 0:00:01]} d5 {[%emt 0:00:01]} 2. c4 {[%emt 0:00:02]} c6 {[%emt 0:
00:01]} 3. cxd5 {[%emt 0:00:02]} cxd5 {[%emt 0:00:01]} 4. Bf4 {[%emt 0:00:01]}
Nc6 {[%emt 0:00:03]} 5. e3 {[%emt 0:00:02]} Nf6 {[%emt 0:00:02]} 6. Nc3 {
[%emt 0:00:03]} a6 {[%emt 0:00:01]} 7. Be2 {[%emt 0:00:03]} Bf5 {[%emt 0:00:05]
} 8. Nf3 {[%emt 0:00:03]} e6 {[%emt 0:00:03]} 9. Qb3 {[%emt 0:00:06]} Ra7 {
[%emt 0:00:12]} 10. Ne5 {[%emt 0:00:09]} Nxe5 {[%emt 0:00:15]} 11. Bxe5 {
[%emt 0:00:01]} Nd7 {[%emt 0:00:02]} 12. Bg3 {[%emt 0:00:08]} Be7 {[%emt 0:00:
04]} 13. O-O {[%emt 0:00:02]} O-O {[%emt 0:00:02]} 14. Rfc1 {[%emt 0:00:05]} b5
{[%emt 0:00:02]} 15. a4 {[%emt 0:00:14]} b4 {[%emt 0:00:02]} 16. Nb1 {[%emt 0:
00:11]} Nf6 {[%emt 0:00:31]} 17. Nd2 {[%emt 0:00:06]} h6 {[%emt 0:00:09]} 18.
Rc6 {[%emt 0:00:08]} Qa8 {[%emt 0:00:35]} 19. Rac1 {[%emt 0:00:03]} Re8 {
[%emt 0:00:17]} 20. h3 {[%emt 0:00:07]} Bf8 {[%emt 0:00:01]} 21. Qd1 {[%emt 0:
00:15]} Bg6 {[%emt 0:00:08]} 22. Qf1 {[%emt 0:00:07]} a5 {[%emt 0:00:03]} 23.
Bb5 {[%emt 0:00:04]} Rd8 {[%emt 0:00:17]} 24. Bc7 {[%emt 0:00:08]} Re8 {
[%emt 0:00:01]} 25. Nf3 {[%emt 0:00:14]} Ne4 {[%emt 0:00:19]} 26. Bb6 {[%emt 0:
00:11]} Rb7 {[%emt 0:00:05]} 27. Ba6 {[%emt 0:00:04]} Rbb8 {[%emt 0:00:07]} 28.
Bc7 {[%emt 0:00:07]} f6 {[%emt 0:00:08]} 29. Bxb8 {[%emt 0:00:03]} Rxb8 {
[%emt 0:00:05]} 30. Rc8 {[%emt 0:00:20]} Nd6 {[%emt 0:00:03]} 31. Rxb8 {
[%emt 0:00:05]} Qxb8 {[%emt 0:00:01]} 32. Nd2 {[%emt 0:00:06]} e5 {[%emt 0:00:
04]} 33. Nb3 {[%emt 0:00:02]} Qb6 {[%emt 0:00:01]} 34. Bb5 {[%emt 0:00:03]} Bf7
{[%emt 0:00:02]} 35. Rc6 {[%emt 0:00:04]} Qd8 {[%emt 0:00:01]} 36. Ra6 {
[%emt 0:00:13]} Nc4 {[%emt 0:00:02]} 37. Qc1 {[%emt 0:00:18]} Bd6 {[%emt 0:00:
01]} 38. Nc5 {[%emt 0:00:05]} Qc7 {[%emt 0:00:05]} 39. Rc6 {[%emt 0:00:03]} Qe7
{[%emt 0:00:02]} 40. b3 {[%emt 0:00:01]} Na3 {[%emt 0:00:02]} 41. Ra6 {[%emt 0:
00:09]} exd4 {[%emt 0:00:03]} 42. exd4 {[%emt 0:00:01]} g5 {[%emt 0:00:03]} 43.
Qe3 {[%emt 0:00:01]} Qc7 {[%emt 0:00:06]} 44. Ra8+ {[%emt 0:00:02]} Kg7 {
[%emt 0:00:03]} 45. Qe2 {[%emt 0:00:05]} Bxc5 {[%emt 0:00:02]} 46. dxc5 {
[%emt 0:00:01]} Qxc5 {[%emt 0:00:01]} 47. g3 {[%emt 0:00:03]} d4 {[%emt 0:00:
02]} 48. Kh2 {[%emt 0:00:02]} Qe5 {[%emt 0:00:01]} 49. Qxe5 {[%emt 0:00:02]}
fxe5 {[%emt 0:00:01]} 50. Rxa5 {[%emt 0:00:02]} Bxb3 {[%emt 0:00:02]} 51. Ra7+
{[%emt 0:00:00]} Kf6 {[%emt 0:00:01]} 52. Bd3 {[%emt 0:00:01]} Bd5 {[%emt 0:00:
01]} 53. Ra6+ {[%emt 0:00:02]} Ke7 {[%emt 0:00:01]} 54. Rb6 {[%emt 0:00:01]} e4
{[%emt 0:00:01]} 55. Bf1 {[%emt 0:00:04]} b3 {[%emt 0:00:01]} 56. a5 {[%emt 0:
00:01]} d3 {[%emt 0:00:03]} 57. a6 {[%emt 0:00:01]} Kd7 {[%emt 0:00:06]} 58. a7
{[%emt 0:00:00]} Nc2 {[%emt 0:00:03]} 59. Rxb3 {[%emt 0:00:02]} Ne1 {[%emt 0:
00:02]} 60. Rb8 {[%emt 0:00:02]} Nf3+ {[%emt 0:00:01]} 61. Kh1 {[%emt 0:00:01]}
e3 {[%emt 0:00:01]} 62. fxe3 {[%emt 0:00:05]} d2 {[%emt 0:00:00]} 63. Rb1 {
[%emt 0:00:05]} Kc7 {[%emt 0:00:10]} 64. Bg2 {[%emt 0:00:02]} Be4 {[%emt 0:00:
03]} 65. Ra1 {[%emt 0:00:00]} Ba8 {[%emt 0:00:02]} 66. g4 {[%emt 0:00:02]} Kb6
{[%emt 0:00:01]} 67. Bxf3 {[%emt 0:00:04]} Bxf3+ {[%emt 0:00:01]} 68. Kg1 {
[%emt 0:00:00]} Ba8 {[%emt 0:00:10]} 69. Kf2 {[%emt 0:00:02]} d1=Q {[%emt 0:00:
02]} 70. Rxd1 {[%emt 0:00:02]} 1-0

[Event "FIDE Women World Blitz 2021"]
[Site "Warsaw"]
[Date "2021.12.29"]
[Round "6.1"]
[White "Katkov, Michelle"]
[Black "Rakhmangulova, Anastasiya"]
[Result "1/2-1/2"]
[ECO "B01"]
[WhiteElo "1651"]
[BlackElo "2174"]
[Annotator "NA"]
[PlyCount "98"]
[EventDate "2021.12.29"]
[EventType "swiss"]
[EventCountry "POL"]
[Tiebreak "Cut1 Buchholz"]
[SourceTitle "playchess.com"]
[Source "ChessBase"]
[SourceQuality "1"]
[TimeControl "180+2"]

1. e4 {[%emt 0:00:01]} d5 {[%emt 0:00:01]} 2. exd5 {[%emt 0:00:01]} Qxd5 {
[%emt 0:00:01]} 3. Nc3 {[%emt 0:00:01]} Qd6 {[%emt 0:00:00]} 4. d4 {[%emt 0:00:
01]} Nf6 {[%emt 0:00:01]} 5. Nf3 {[%emt 0:00:02]} a6 {[%emt 0:00:00]} 6. g3 {
[%emt 0:00:01]} Bg4 {[%emt 0:00:01]} 7. Bg2 {[%emt 0:00:01]} Nc6 {[%emt 0:00:
01]} 8. O-O {[%emt 0:00:02]} O-O-O {[%emt 0:00:01]} 9. h3 {[%emt 0:00:48]} Bh5
{[%emt 0:00:35]} 10. Qd3 {[%emt 0:00:14]} Bg6 {[%emt 0:00:09]} 11. Qe2 {
[%emt 0:00:07]} e6 {[%emt 0:00:29]} 12. Bf4 {[%emt 0:00:03]} Qb4 {[%emt 0:00:
05]} 13. Ne5 {[%emt 0:00:17]} Nxd4 {[%emt 0:00:22]} 14. Qe3 {[%emt 0:00:12]}
Bc5 {[%emt 0:00:29]} 15. a3 {[%emt 0:00:17]} Qb6 {[%emt 0:00:20]} 16. Na4 {
[%emt 0:00:09]} Qa7 {[%emt 0:00:03]} 17. b4 {[%emt 0:00:24]} Bb6 {[%emt 0:00:
07]} 18. c4 {[%emt 0:00:23]} Nc2 {[%emt 0:00:13]} 19. Qc3 {[%emt 0:00:02]} Bd4
{[%emt 0:00:03]} 20. Qb3 {[%emt 0:00:15]} Nxa1 {[%emt 0:00:01]} 21. Qa2 {
[%emt 0:00:05]} Be4 {[%emt 0:00:07]} 22. Bxe4 {[%emt 0:00:05]} Nxe4 {[%emt 0:
00:01]} 23. Nxf7 {[%emt 0:00:02]} g5 {[%emt 0:00:14]} 24. Nxh8 {[%emt 0:00:06]}
gxf4 {[%emt 0:00:02]} 25. Nf7 {[%emt 0:00:01]} Rg8 {[%emt 0:00:06]} 26. g4 {
[%emt 0:00:06]} h5 {[%emt 0:00:02]} 27. Rd1 {[%emt 0:00:06]} hxg4 {[%emt 0:00:
06]} 28. hxg4 {[%emt 0:00:03]} Rxg4+ {[%emt 0:00:05]} 29. Kf1 {[%emt 0:00:00]}
Rh4 {[%emt 0:00:06]} 30. c5 {[%emt 0:00:02]} e5 {[%emt 0:00:02]} 31. Rxd4 {
[%emt 0:00:01]} exd4 {[%emt 0:00:01]} 32. Ke2 {[%emt 0:00:01]} Rh1 {[%emt 0:00:
07]} 33. Ne5 {[%emt 0:00:02]} b5 {[%emt 0:00:02]} 34. Qg8+ {[%emt 0:00:01]} Kb7
{[%emt 0:00:01]} 35. Qd5+ {[%emt 0:00:00]} c6 {[%emt 0:00:01]} 36. Qxe4 {
[%emt 0:00:01]} Rh8 {[%emt 0:00:02]} 37. Qxc6+ {[%emt 0:00:02]} Kb8 {[%emt 0:
00:00]} 38. Qd6+ {[%emt 0:00:01]} Qc7 {[%emt 0:00:01]} 39. Nc6+ {[%emt 0:00:02]
} Kc8 {[%emt 0:00:01]} 40. Nb6+ {[%emt 0:00:02]} Kb7 {[%emt 0:00:01]} 41. Na5+
{[%emt 0:00:01]} Kb8 {[%emt 0:00:00]} 42. Nc6+ {[%emt 0:00:05]} Kb7 {[%emt 0:
00:01]} 43. Na5+ {[%emt 0:00:05]} Kb8 44. Nd7+ {[%emt 0:00:01]} Kc8 {[%emt 0:
00:03]} 45. Nb6+ {[%emt 0:00:02]} Kb8 {[%emt 0:00:01]} 46. Nd7+ {[%emt 0:00:02]
} Kc8 {[%emt 0:00:00]} 47. Nb6+ {[%emt 0:00:06]} Kb8 {[%emt 0:00:01]} 48. Nd7+
{[%emt 0:00:01]} Kc8 {[%emt 0:00:00]} 49. Nb6+ {[%emt 0:00:03]} Kb8 {[%emt 0:
00:05]} 1/2-1/2

[Event "FIDE Women World Blitz 2021"]
[Site "Warsaw"]
[Date "2021.12.29"]
[Round "6.2"]
[White "Gaponenko, Inna"]
[Black "Shuvalova, Polina"]
[Result "0-1"]
[ECO "B12"]
[WhiteElo "2339"]
[BlackElo "2515"]
[Annotator "ChessBase"]
[PlyCount "63"]
[EventDate "2021.12.29"]
[EventType "swiss"]
[EventCountry "POL"]
[Tiebreak "Cut1 Buchholz"]
[SourceTitle "playchess.com"]
[Source "ChessBase"]
[SourceQuality "1"]
[TimeControl "180+2"]

1. e4 {[%emt 0:00:01]} c6 {[%emt 0:00:02]} 2. d4 {[%emt 0:00:02]} d5 {[%emt 0:
00:01]} 3. e5 {[%emt 0:00:01]} Bf5 {[%emt 0:00:02]} 4. Nf3 {[%emt 0:00:01]} e6
{[%emt 0:00:01]} 5. Be2 {[%emt 0:00:02]} Nd7 {[%emt 0:00:02]} 6. O-O {[%emt 0:
00:02]} h6 {[%emt 0:00:01]} 7. a4 {[%emt 0:00:13]} a5 {[%emt 0:00:06]} 8. Nbd2
{[%emt 0:00:02]} Ne7 {[%emt 0:00:02]} 9. Nb3 {[%emt 0:00:01]} Qc7 {[%emt 0:00:
02]} 10. Bd2 {[%emt 0:00:02]} g5 {[%emt 0:00:02]} 11. Rc1 {[%emt 0:00:04]} f6 {
[%emt 0:00:06]} 12. exf6 {[%emt 0:00:18]} Ng6 {[%emt 0:00:02]} 13. c4 {[%emt 0:
00:13]} Bd6 {[%emt 0:00:05]} 14. cxd5 {[%emt 0:01:27]} exd5 {[%emt 0:00:01]}
15. h3 {[%emt 0:00:01]} O-O {[%emt 0:00:12]} 16. Nc5 {[%emt 0:00:12]} Nxf6 {
[%emt 0:00:10]} 17. Be3 {[%emt 0:00:19]} Rae8 {[%emt 0:00:05]} 18. Bd3 {
[%emt 0:00:08]} Ne4 {[%emt 0:00:11]} 19. Bxe4 {[%emt 0:00:08]} dxe4 {[%emt 0:
00:02]} 20. Nd2 {[%emt 0:00:02]} Kg7 {[%emt 0:00:16]} 21. Nc4 {[%emt 0:00:03]}
Nf4 {[%emt 0:00:25]} 22. Nxd6 {[%emt 0:00:01]} Qxd6 {[%emt 0:00:02]} 23. Bxf4 {
[%emt 0:00:01]} gxf4 {[%emt 0:00:01]} 24. Rc3 {[%emt 0:00:06]} Kh7 {[%emt 0:00:
03]} 25. Qd2 {[%emt 0:00:06]} Rg8 {[%emt 0:00:05]} 26. Kh1 {[%emt 0:00:12]} b6
{[%emt 0:00:01]} 27. Nb3 {[%emt 0:00:03]} Rg6 {[%emt 0:00:01]} 28. Nc1 {
[%emt 0:00:04]} Reg8 {[%emt 0:00:02]} 29. Rg1 {[%emt 0:00:01]} f3 {[%emt 0:00:
01]} 30. g4 {[%emt 0:00:01]} h5 {[%emt 0:00:08]} 31. g5 {[%emt 0:00:03]} Bxh3 {
[%emt 0:00:02]} 32. Rg3 {[%emt 0:00:06]} 0-1

[Event "FIDE Women World Blitz 2021"]
[Site "Warsaw"]
[Date "2021.12.29"]
[Round "6.2"]
[White "Paramzina, Anastasya"]
[Black "Zairbek kyzy, Begimai"]
[Result "1-0"]
[ECO "B13"]
[WhiteElo "2260"]
[BlackElo "1701"]
[Annotator "NA"]
[PlyCount "95"]
[EventDate "2021.12.29"]
[EventType "swiss"]
[EventCountry "POL"]
[Tiebreak "Cut1 Buchholz"]
[SourceTitle "playchess.com"]
[Source "ChessBase"]
[SourceQuality "1"]
[TimeControl "180+2"]

1. e4 {[%emt 0:00:01]} c6 {[%emt 0:00:01]} 2. d4 {[%emt 0:00:01]} d5 {[%emt 0:
00:01]} 3. exd5 {[%emt 0:00:01]} cxd5 {[%emt 0:00:00]} 4. Bd3 {[%emt 0:00:02]}
Nc6 5. c3 {[%emt 0:00:02]} Nf6 {[%emt 0:00:01]} 6. h3 {[%emt 0:00:02]} g6 7.
Nf3 {[%emt 0:00:04]} Bf5 {[%emt 0:00:01]} 8. Bb5 {[%emt 0:00:07]} a6 {[%emt 0:
00:04]} 9. Bxc6+ {[%emt 0:00:03]} bxc6 {[%emt 0:00:01]} 10. O-O {[%emt 0:00:07]
} Bg7 {[%emt 0:00:01]} 11. Bf4 {[%emt 0:00:06]} O-O {[%emt 0:00:03]} 12. Nbd2 {
[%emt 0:00:07]} Qb6 {[%emt 0:00:31]} 13. Nb3 {[%emt 0:00:11]} Nd7 {[%emt 0:00:
23]} 14. Re1 {[%emt 0:00:02]} Rfe8 {[%emt 0:00:02]} 15. Qd2 {[%emt 0:00:10]} a5
{[%emt 0:00:09]} 16. Rad1 {[%emt 0:00:02]} a4 {[%emt 0:00:03]} 17. Nc1 {
[%emt 0:00:02]} a3 {[%emt 0:00:03]} 18. b3 {[%emt 0:00:01]} Rac8 {[%emt 0:00:
25]} 19. b4 {[%emt 0:00:22]} Qb7 {[%emt 0:00:46]} 20. Nb3 {[%emt 0:00:02]} Nb6
{[%emt 0:00:14]} 21. Na5 {[%emt 0:00:01]} Qa6 {[%emt 0:00:04]} 22. Ne5 {
[%emt 0:00:03]} Na4 {[%emt 0:00:18]} 23. Bh6 {[%emt 0:00:22]} Bh8 {[%emt 0:00:
02]} 24. g4 {[%emt 0:00:08]} Be6 {[%emt 0:00:01]} 25. f4 {[%emt 0:00:07]} Nb2 {
[%emt 0:00:07]} 26. Ra1 {[%emt 0:00:05]} Bxe5 {[%emt 0:00:11]} 27. fxe5 {
[%emt 0:00:10]} c5 {[%emt 0:00:12]} 28. dxc5 {[%emt 0:00:05]} Rxc5 {[%emt 0:00:
02]} 29. bxc5 {[%emt 0:00:03]} Qxa5 {[%emt 0:00:00]} 30. Qd4 {[%emt 0:00:11]}
Nc4 {[%emt 0:00:02]} 31. Rab1 {[%emt 0:00:03]} Nb2 {[%emt 0:00:01]} 32. Qb4 {
[%emt 0:00:05]} Qc7 {[%emt 0:00:01]} 33. Qb6 {[%emt 0:00:02]} Qc8 {[%emt 0:00:
05]} 34. c6 {[%emt 0:00:11]} Bxg4 {[%emt 0:00:03]} 35. c7 {[%emt 0:00:05]} Bxh3
{[%emt 0:00:04]} 36. e6 {[%emt 0:00:07]} Bxe6 {[%emt 0:00:02]} 37. Bf4 {
[%emt 0:00:04]} Nd3 {[%emt 0:00:02]} 38. Rxe6 {[%emt 0:00:15]} fxe6 {[%emt 0:
00:02]} 39. Qb8 {[%emt 0:00:03]} Nxf4 {[%emt 0:00:01]} 40. Qxc8 {[%emt 0:00:01]
} Rxc8 {[%emt 0:00:01]} 41. Rb8 {[%emt 0:00:02]} Kf7 {[%emt 0:00:06]} 42. Rxc8
{[%emt 0:00:01]} Ne2+ {[%emt 0:00:01]} 43. Kf2 {[%emt 0:00:02]} Nxc3 {[%emt 0:
00:01]} 44. Ra8 {[%emt 0:00:02]} Ne4+ {[%emt 0:00:01]} 45. Ke3 {[%emt 0:00:04]}
Nd6 {[%emt 0:00:02]} 46. Rd8 {[%emt 0:00:03]} Nc4+ {[%emt 0:00:02]} 47. Ke2 {
[%emt 0:00:03]} Nb6 {[%emt 0:00:02]} 48. Rb8 {[%emt 0:00:02]} 1-0

[Event "FIDE Women World Blitz 2021"]
[Site "Warsaw"]
[Date "2021.12.29"]
[Round "6.3"]
[White "Koneru, Humpy"]
[Black "Muzychuk, Mariya"]
[Result "1/2-1/2"]
[ECO "D46"]
[WhiteElo "2586"]
[BlackElo "2536"]
[Annotator "ChessBase"]
[PlyCount "47"]
[EventDate "2021.12.29"]
[EventType "swiss"]
[EventCountry "POL"]
[Tiebreak "Cut1 Buchholz"]
[SourceTitle "playchess.com"]
[Source "ChessBase"]
[SourceQuality "1"]
[TimeControl "180+2"]

1. d4 {[%emt 0:00:01]} d5 {[%emt 0:00:00]} 2. c4 {[%emt 0:00:02]} c6 {[%emt 0:
00:00]} 3. Nc3 {[%emt 0:00:03]} Nf6 {[%emt 0:00:01]} 4. e3 {[%emt 0:00:01]} e6
{[%emt 0:00:04]} 5. Nf3 {[%emt 0:00:02]} Nbd7 {[%emt 0:00:02]} 6. Bd3 {[%emt 0:
00:03]} Bd6 {[%emt 0:00:02]} 7. O-O {[%emt 0:00:03]} O-O {[%emt 0:00:05]} 8. e4
{[%emt 0:00:21]} dxc4 {[%emt 0:00:29]} 9. Bxc4 {[%emt 0:00:02]} e5 {[%emt 0:00:
04]} 10. d5 {[%emt 0:00:35]} Nb6 {[%emt 0:00:15]} 11. Bb3 {[%emt 0:00:01]} cxd5
{[%emt 0:00:06]} 12. exd5 {[%emt 0:00:05]} Bg4 {[%emt 0:00:03]} 13. h3 {
[%emt 0:00:16]} Bh5 {[%emt 0:00:02]} 14. Re1 {[%emt 0:00:21]} Re8 {[%emt 0:00:
04]} 15. Bg5 {[%emt 0:00:13]} h6 {[%emt 0:00:11]} 16. Bxf6 {[%emt 0:00:09]}
Qxf6 {[%emt 0:00:01]} 17. Ne4 {[%emt 0:00:03]} Qe7 {[%emt 0:00:05]} 18. Qd3 {
[%emt 0:00:14]} Bg6 {[%emt 0:00:04]} 19. Qe2 {[%emt 0:00:10]} Nd7 {[%emt 0:00:
15]} 20. Ba4 {[%emt 0:00:14]} Bxe4 {[%emt 0:00:21]} 21. Qxe4 {[%emt 0:00:04]}
Nc5 {[%emt 0:00:00]} 22. Qc4 {[%emt 0:00:12]} Nxa4 {[%emt 0:00:04]} 23. Qxa4 {
[%emt 0:00:01]} a6 {[%emt 0:00:04]} 24. Qe4 {[%emt 0:00:13]} 1/2-1/2

[Event "FIDE Women World Blitz 2021"]
[Site "Warsaw"]
[Date "2021.12.29"]
[Round "6.3"]
[White "Batsiashvili, Nino"]
[Black "Kurmangaliyeva, Liya"]
[Result "1-0"]
[ECO "D38"]
[WhiteElo "2491"]
[BlackElo "2222"]
[Annotator "ChessBase"]
[PlyCount "89"]
[EventDate "2021.12.29"]
[EventType "swiss"]
[EventCountry "POL"]
[Tiebreak "Cut1 Buchholz"]
[SourceTitle "playchess.com"]
[Source "ChessBase"]
[SourceQuality "1"]
[TimeControl "180+2"]

1. d4 {[%emt 0:00:01]} Nf6 {[%emt 0:00:01]} 2. c4 {[%emt 0:00:00]} e6 {[%emt 0:
00:02]} 3. Nc3 {[%emt 0:00:01]} Bb4 {[%emt 0:00:01]} 4. Nf3 {[%emt 0:00:00]} d5
{[%emt 0:00:02]} 5. Qa4+ {[%emt 0:00:04]} Nc6 {[%emt 0:00:01]} 6. a3 {[%emt 0:
00:01]} Bxc3+ {[%emt 0:00:22]} 7. bxc3 {[%emt 0:00:01]} Bd7 {[%emt 0:00:02]} 8.
cxd5 {[%emt 0:00:10]} exd5 {[%emt 0:00:07]} 9. Bg5 {[%emt 0:00:12]} h6 {
[%emt 0:00:11]} 10. Bh4 {[%emt 0:00:05]} O-O {[%emt 0:00:11]} 11. Qc2 {[%emt 0:
00:07]} Re8 {[%emt 0:00:33]} 12. e3 {[%emt 0:00:01]} g5 {[%emt 0:00:08]} 13.
Bg3 {[%emt 0:00:01]} Ne4 {[%emt 0:00:03]} 14. Bd3 {[%emt 0:00:05]} Bf5 {
[%emt 0:00:13]} 15. O-O {[%emt 0:00:16]} Na5 {[%emt 0:00:11]} 16. Ne5 {[%emt 0:
00:56]} f6 {[%emt 0:00:09]} 17. Nf3 {[%emt 0:00:01]} Nc4 {[%emt 0:00:04]} 18.
a4 {[%emt 0:00:11]} Qd7 {[%emt 0:00:09]} 19. a5 {[%emt 0:00:03]} b6 {[%emt 0:
00:07]} 20. Rfb1 {[%emt 0:00:07]} Nxa5 {[%emt 0:00:08]} 21. Nd2 {[%emt 0:00:15]
} Nxg3 {[%emt 0:00:05]} 22. hxg3 {[%emt 0:00:02]} Bxd3 {[%emt 0:00:01]} 23.
Qxd3 {[%emt 0:00:01]} c6 {[%emt 0:00:07]} 24. e4 {[%emt 0:00:22]} Kg7 {[%emt 0:
00:06]} 25. exd5 {[%emt 0:00:05]} cxd5 {[%emt 0:00:05]} 26. c4 {[%emt 0:00:21]}
dxc4 {[%emt 0:00:03]} 27. Nxc4 {[%emt 0:00:00]} Nxc4 {[%emt 0:00:02]} 28. Qxc4
{[%emt 0:00:01]} Rac8 {[%emt 0:00:01]} 29. Qd3 {[%emt 0:00:10]} Red8 {[%emt 0:
00:03]} 30. d5 {[%emt 0:00:03]} Rc7 {[%emt 0:00:04]} 31. Rd1 {[%emt 0:00:02]}
Qd6 {[%emt 0:00:09]} 32. g4 {[%emt 0:00:03]} a5 {[%emt 0:00:01]} 33. Rac1 {
[%emt 0:00:07]} Rdd7 {[%emt 0:00:13]} 34. Rxc7 {[%emt 0:00:07]} Rxc7 {[%emt 0:
00:01]} 35. Re1 {[%emt 0:00:02]} Rd7 {[%emt 0:00:04]} 36. Qf5 {[%emt 0:00:02]}
Re7 {[%emt 0:00:07]} 37. Rc1 {[%emt 0:00:03]} Re5 {[%emt 0:00:05]} 38. Qc8 {
[%emt 0:00:01]} Rxd5 {[%emt 0:00:02]} 39. Rc7+ {[%emt 0:00:01]} Qxc7 {[%emt 0:
00:11]} 40. Qxc7+ {[%emt 0:00:01]} Kg6 {[%emt 0:00:01]} 41. Qxb6 {[%emt 0:00:
01]} h5 {[%emt 0:00:03]} 42. Qb1+ {[%emt 0:00:03]} Kh6 {[%emt 0:00:01]} 43.
gxh5 {[%emt 0:00:02]} Re5 {[%emt 0:00:03]} 44. g4 {[%emt 0:00:02]} f5 {[%emt 0:
00:02]} 45. Qb6+ {[%emt 0:00:01]} 1-0

[Event "FIDE Women World Blitz 2021"]
[Site "Warsaw"]
[Date "2021.12.29"]
[Round "6.4"]
[White "Kosteniuk, Alexandra"]
[Black "Assaubayeva, Bibisara"]
[Result "0-1"]
[ECO "B22"]
[WhiteElo "2518"]
[BlackElo "2400"]
[Annotator "ChessBase"]
[PlyCount "56"]
[EventDate "2021.12.29"]
[EventType "swiss"]
[EventCountry "POL"]
[Tiebreak "Cut1 Buchholz"]
[SourceTitle "playchess.com"]
[Source "ChessBase"]
[SourceQuality "1"]
[TimeControl "180+2"]

1. e4 {[%emt 0:00:01]} c5 {[%emt 0:00:01]} 2. c3 {[%emt 0:00:01]} Nf6 {[%emt 0:
00:01]} 3. e5 {[%emt 0:00:01]} Nd5 {[%emt 0:00:01]} 4. Nf3 {[%emt 0:00:00]} Nc6
{[%emt 0:00:02]} 5. d4 {[%emt 0:00:01]} cxd4 {[%emt 0:00:03]} 6. cxd4 {[%emt 0:
00:01]} d6 {[%emt 0:00:01]} 7. Bc4 {[%emt 0:00:01]} e6 {[%emt 0:00:00]} 8. O-O
{[%emt 0:00:03]} Be7 {[%emt 0:00:01]} 9. Qe2 {[%emt 0:00:03]} O-O {[%emt 0:00:
03]} 10. Rd1 {[%emt 0:00:01]} Qc7 {[%emt 0:00:04]} 11. a3 {[%emt 0:00:11]} a6 {
[%emt 0:00:13]} 12. Bd3 {[%emt 0:00:10]} dxe5 {[%emt 0:00:04]} 13. dxe5 {
[%emt 0:00:04]} Rd8 {[%emt 0:00:10]} 14. h4 {[%emt 0:00:07]} Na5 {[%emt 0:00:
21]} 15. Qe4 {[%emt 0:00:13]} g6 {[%emt 0:00:02]} 16. Nbd2 {[%emt 0:00:11]} b5
{[%emt 0:00:07]} 17. h5 {[%emt 0:00:54]} Bb7 {[%emt 0:00:00]} 18. hxg6 {
[%emt 0:00:11]} hxg6 {[%emt 0:00:02]} 19. Qg4 {[%emt 0:00:01]} Ne3 {[%emt 0:00:
11]} 20. fxe3 {[%emt 0:00:19]} Rxd3 {[%emt 0:00:02]} 21. Rf1 {[%emt 0:00:02]}
Rxe3 {[%emt 0:00:27]} 22. b4 {[%emt 0:00:01]} Nc6 {[%emt 0:00:12]} 23. Qf4 {
[%emt 0:00:18]} Re2 {[%emt 0:00:30]} 24. Ne4 {[%emt 0:00:05]} Nxb4 {[%emt 0:00:
21]} 25. Nd6 {[%emt 0:00:15]} Bxd6 {[%emt 0:00:06]} 26. exd6 {[%emt 0:00:01]}
Qc5+ {[%emt 0:00:03]} 27. Qd4 {[%emt 0:00:22]} Qxd4+ {[%emt 0:00:02]} 28. Nxd4
{[%emt 0:00:01]} Rxg2+ {[%emt 0:00:02]} 0-1